bitfinex-derivatives/quotes_ETHF0:USTF0_20250917
["timestamp","ask_amount","ask_price","bid_price","bid_amount"]
[1758103212999,0.7158,4498.2,4498.1,0.7432]
[1758103213201,1.29335318,4498.2,4498.1,0.7432]
[1758103213593,1.29335318,4498.2,4498.1,0.5273]
[1758103213796,1.29335318,4498.2,4498.1,0.3152]
[1758103214597,1.29335318,4498.2,4497.5,0.1234]
[1758103214799,0.7158,4497.6,4497.5,0.5273]
[1758103215001,1.29289307,4497.6,4497.5,0.5273]
[1758103215299,1.29289307,4497.6,4497.5,0.76454085]
[1758103215499,1.29289307,4497.6,4497.5,1.10384085]
[1758103217504,1.29289307,4497.6,4497.0,0.1234]
[1758103217702,0.7158,4497.4,4497.3,0.98044085]
[1758103217906,0.3989,4497.4,4497.3,0.7432]
[1758103218101,0.2013,4497.4,4497.3,0.7432]
[1758103218302,0.3169,4498.4,4497.6,0.3152]
[1758103218502,0.57709726,4498.3,4497.6,0.3152]
[1758103218702,0.7158,4497.7,4497.6,0.7432]
[1758103218903,1.29289726,4497.7,4497.0,0.1234]
[1758103219109,0.7158,4497.5,4497.4,0.5273]
[1758103219297,1.29289726,4497.5,4497.4,0.5273]
[1758103219502,1.29289726,4497.5,4497.4,0.3152]
[1758103220007,1.29289726,4497.5,4497.4,0.5273]
[1758103224610,0.77839726,4497.5,4497.4,0.98044085]
[1758103228014,1.08509726,4497.5,4497.4,0.98044085]
[1758103228407,1.29569726,4497.5,4497.4,0.23724085]
[1758103228613,1.29569726,4497.5,4497.1,0.3164]
[1758103228801,1.30129726,4497.4,4496.1,1.481]
[1758103229007,0.7242,4496.7,4496.6,0.5118]
[1758103229202,1.29426121,4496.7,4496.6,0.7122]
[1758103229406,0.7242,4496.7,4496.6,0.94944085]
[1758103229606,0.4175,4496.7,4496.6,0.94944085]
[1758103229810,0.3067,4497.0,4496.6,0.94944085]
[1758103230010,0.77683396,4496.9,4496.8,0.3958]
[1758103230210,0.77683396,4496.9,4496.8,0.7122]
[1758103230611,1.29413396,4496.9,4496.8,0.7122]
[1758103231414,0.98743396,4496.9,4496.8,0.7122]
[1758103232113,0.77683396,4496.9,4496.8,0.94944085]
[1758103232307,0.56993396,4496.9,4496.8,0.94944085]
[1758103233311,1.29413396,4496.9,4496.8,0.74904085]
[1758103235817,1.29413396,4496.9,4496.8,0.23724085]
[1758103236018,1.29413396,4496.9,4496.8,0.55364085]
[1758103237416,1.29413396,4496.9,4496.8,0.74904085]
[1758103237619,1.29413396,4496.9,4496.8,0.94944085]
[1758103238118,0.77683396,4496.9,4496.8,0.94944085]
[1758103238320,0.0986,4498.0,4497.0,0.1224]
[1758103238617,1.09852009,4497.9,4497.1,0.3164]
[1758103238814,0.2069,4497.2,4497.1,0.63304085]
[1758103239321,0.2069,4497.2,4497.1,0.7122]
[1758103239519,0.77637009,4497.2,4497.1,0.7122]
[1758103239719,0.77637009,4497.2,4497.1,0.94944085]
[1758103241310,0.3067,4497.9,4497.1,0.63304085]
[1758103241513,0.77636808,4497.8,4497.7,0.3958]
[1758103241719,1.08306808,4497.8,4497.7,0.7122]
[1758103241922,1.29366808,4497.8,4497.7,0.7122]
[1758103242217,0.77636808,4497.8,4497.7,0.94944085]
[1758103242523,0.3067,4498.6,4498.5,0.1224]
[1758103242717,1.07744265,4498.6,4498.5,0.8346]
[1758103242928,0.3067,4498.4,4497.6,0.5118]
[1758103243116,0.2069,4497.7,4497.6,0.7122]
[1758103243312,0.7242,4498.4,4498.3,0.7122]
[1758103243518,1.28806692,4498.4,4498.3,0.7122]
[1758103244223,0.98136692,4498.4,4498.3,0.94944085]
[1758103244425,0.77076692,4498.4,4498.3,0.94944085]
[1758103245018,1.28806692,4498.4,4498.3,0.94944085]
[1758103245422,0.98136692,4498.4,4498.3,0.94944085]
[1758103246432,1.28806692,4498.4,4498.3,0.94944085]
[1758103246617,0.98136692,4498.4,4498.3,0.94944085]
[1758103248325,0.3174,4499.1,4498.3,0.63304085]
[1758103248622,0.7368,4499.1,4499.0,0.7251]
[1758103248820,1.30030312,4499.1,4499.0,0.7251]
[1758103249433,1.30030312,4499.1,4499.0,0.8473]
[1758103250433,1.30030312,4499.1,4499.0,0.7251]
[1758103250831,0.1047,4499.0,4498.5,0.1222]
[1758103251032,0.7368,4498.6,4498.0,0.1224]
[1758103251437,0.7368,4498.6,4498.4,0.2951]
[1758103251938,0.4194,4498.6,4498.0,0.1224]
[1758103252138,0.7368,4498.5,4498.4,0.5092]
[1758103252633,0.4125,4498.4,4498.3,0.74474085]
[1758103252840,0.7166,4498.4,4498.3,0.74474085]
[1758103253233,0.7166,4498.4,4498.3,0.95714085]
[1758103254041,0.4125,4498.4,4498.3,0.95714085]
[1758103254741,0.2003,4498.4,4498.3,0.95714085]
[1758103256243,0.2003,4498.5,4498.4,0.7199]
[1758103256739,0.3041,4498.8,4498.7,0.5075]
[1758103256740,0.7166,4498.8,4498.7,0.5075]
[1758103256944,0.7166,4498.8,4498.7,0.7199]
[1758103257141,0.7166,4498.8,4498.7,0.95714085]
[1758103257342,0.4125,4498.8,4498.7,0.95714085]
[1758103257857,0.2003,4498.8,4498.7,0.95714085]
[1758103258737,0.7284,4499.4,4499.3,0.21]
[1758103259041,1.27878468,4499.4,4499.3,0.7199]
[1758103260145,1.27875676,4499.4,4499.3,0.5075]
[1758103260446,1.27875676,4499.4,4499.3,0.2975]
[1758103261442,1.27875676,4499.4,4499.3,0.7199]
[1758103261644,0.4125,4499.4,4499.3,0.7199]
[1758103261851,0.7166,4499.4,4499.3,0.7199]
[1758103262447,0.3041,4500.2,4498.1,0.2975]
[1758103262646,0.4125,4499.2,4499.1,0.65964085]
[1758103263641,4.63476,4499.2,4499.1,0.4224]
[1758103263847,4.97458699,4499.2,4499.1,0.4224]
[1758103264049,5.19684699,4499.2,4499.1,0.4224]
[1758103264850,4.97458699,4499.2,4499.1,0.4224]
[1758103265042,0.97458699,4499.2,4499.1,0.65964085]
[1758103265445,0.97458699,4499.2,4499.1,0.4224]
[1758103265948,0.97458699,4499.2,4497.8,1.481]
[1758103265949,4.56208699,4499.2,4497.8,1.481]
[1758103266144,0.56208699,4499.1,4498.5,0.23724085]
[1758103266340,0.56208699,4499.0,4498.5,0.23724085]
[1758103266648,0.56208699,4498.9,4498.5,0.23724085]
[1758103266848,0.22226,4499.9,4498.5,0.23724085]
[1758103267047,0.56243853,4499.8,4498.5,0.23724085]
[1758103267250,0.56243853,4499.7,4498.5,0.23724085]
[1758103267449,0.56243853,4499.6,4498.5,0.23724085]
[1758103267949,0.56243853,4499.5,4498.5,0.23724085]
[1758103268150,0.56243853,4499.5,4497.7,0.025]
[1758103268349,0.56243853,4499.5,4498.6,0.23724085]
[1758103268649,0.56243853,4499.5,4499.0,0.23724085]
[1758103268849,0.56243853,4499.5,4499.1,0.23724085]
[1758103269643,0.56243853,4499.5,4499.2,0.23724085]
[1758103269844,0.56243853,4499.5,4499.3,0.23724085]
[1758103272640,0.56243853,4499.5,4497.9,1.481]
[1758103272847,0.057,4500.6,4499.4,0.23724085]
[1758103273051,0.56382842,4500.5,4499.9,0.23724085]
[1758103273246,0.56382842,4500.4,4498.0,2.88757756]
[1758103273452,0.56382842,4500.3,4498.0,4.36857756]
[1758103273642,0.56382842,4500.2,4499.3,0.23724085]
[1758103273841,0.56382842,4500.1,4499.3,0.23724085]
[1758103274149,0.56382842,4500.0,4499.3,0.23724085]
[1758103274350,0.56382842,4499.9,4499.3,0.23724085]
[1758103274551,0.56382842,4499.8,4499.3,0.23724085]
[1758103274743,0.56382842,4499.7,4499.3,0.23724085]
[1758103274954,0.56382842,4499.6,4499.3,0.23724085]
[1758103275143,0.56382842,4499.5,4499.3,0.23724085]
[1758103275447,0.56382842,4499.4,4499.3,0.23724085]
[1758103280056,1.9657601,4500.9,4499.3,0.23724085]
[1758103280256,0.78592457,4500.8,4498.8,0.032]
[1758103280457,0.56370457,4500.7,4498.8,0.032]
[1758103280661,0.56370457,4500.6,4498.8,0.032]
[1758103280851,0.56370457,4500.5,4499.9,0.23724085]
[1758103281050,0.56370457,4500.4,4499.9,0.23724085]
[1758103281256,0.56370457,4500.3,4499.9,0.23724085]
[1758103281455,0.56370457,4500.2,4499.9,0.23724085]
[1758103281657,0.56370457,4500.1,4499.9,0.23724085]
[1758103281857,0.56370457,4500.0,4499.9,0.23724085]
[1758103283958,0.225,4500.9,4499.9,0.23724085]
[1758103284160,0.56372636,4500.8,4498.8,0.032]
[1758103284357,0.225,4500.9,4498.9,0.22223]
[1758103284358,0.56372636,4500.7,4498.9,0.22223]
[1758103284561,0.56372636,4500.6,4498.9,3.09195398]
[1758103284756,0.225,4500.9,4499.0,0.22223]
[1758103284757,0.56372636,4500.5,4499.0,0.22223]
[1758103284956,0.225,4500.9,4499.0,0.22223]
[1758103285162,0.225,4500.9,4500.8,0.23724085]
[1758103285458,0.56357184,4500.9,4500.8,0.23724085]
[1758103287764,0.225,4501.8,4500.8,0.23724085]
[1758103288065,0.225,4501.8,4499.7,0.225]
[1758103288265,0.225,4501.8,4500.9,0.23724085]
[1758103294264,0.44716,4501.8,4499.8,1.528]
[1758103294466,0.44716,4501.8,4500.7,0.23724085]
[1758103294860,0.22218,4501.7,4500.7,0.23724085]
[1758103295258,0.225,4501.8,4500.7,0.23724085]
[1758103295462,0.22216,4501.7,4500.7,0.23724085]
[1758103295865,0.225,4501.8,4500.7,0.23724085]
[1758103296071,0.44716,4501.8,4500.7,0.23724085]
[1758103296761,0.225,4501.8,4500.7,0.23724085]
[1758103299267,0.225,4501.8,4499.6,1.481]
[1758103299468,0.225,4501.8,4499.7,1.70319]
[1758103299671,0.225,4501.8,4499.7,1.481]
[1758103299973,0.55947735,4501.7,4499.8,0.22219]
[1758103300166,0.55947735,4501.6,4499.8,0.22219]
[1758103300365,0.55947735,4501.5,4499.7,1.481]
[1758103300567,0.55947735,4501.4,4499.8,0.22219]
[1758103300877,0.55947735,4501.3,4499.8,0.22219]
[1758103301179,0.55947735,4501.2,4501.0,0.23724085]
[1758103301466,0.55947735,4501.1,4501.0,0.23724085]
[1758103301667,0.55947735,4501.1,4499.8,1.481]
[1758103301874,0.225,4501.8,4501.0,0.23724085]
[1758103302071,0.55966011,4501.7,4500.0,1.481]
[1758103302270,0.55966011,4501.6,4501.1,0.23724085]
[1758103302475,0.55966011,4501.5,4501.1,0.23724085]
[1758103302668,0.55966011,4501.4,4499.8,1.481]
[1758103302868,0.55966011,4501.3,4501.0,0.23724085]
[1758103303072,0.55966011,4501.2,4501.0,0.23724085]
[1758103303278,0.55966011,4501.1,4501.0,0.23724085]
[1758103303576,0.55966011,4501.7,4501.0,0.23724085]
[1758103303779,0.55966011,4501.7,4500.0,1.481]
[1758103303968,0.55966011,4501.7,4501.1,0.23724085]
[1758103305074,0.55966011,4501.6,4501.1,0.23724085]
[1758103305274,0.55966011,4501.5,4501.1,0.23724085]
[1758103305581,0.55966011,4501.4,4501.1,0.23724085]
[1758103305770,0.55966011,4501.3,4501.1,0.23724085]
[1758103305973,0.55966011,4501.2,4501.1,0.23724085]
[1758103306375,0.55966011,4501.8,4501.1,0.23724085]
[1758103318097,0.78181011,4501.8,4499.6,0.024]
[1758103318286,0.55966011,4501.7,4498.1,0.40001]
[1758103318491,0.55966011,4501.6,4498.6,3.39602295]
[1758103318692,0.55966011,4501.5,4498.6,3.39602295]
[1758103318888,1.9115535,4502.0,4498.6,3.39602295]
[1758103318889,0.61766011,4501.4,4500.5,0.23724085]
[1758103319096,0.55966011,4501.3,4498.7,0.22221]
[1758103319295,0.55966011,4501.3,4498.8,0.224]
[1758103319799,0.78188011,4501.3,4498.8,0.224]
[1758103319994,0.55966011,4501.2,4498.9,0.22222]
[1758103320498,0.55966011,4501.2,4499.0,0.44622]
[1758103320699,0.55966011,4501.1,4500.4,0.23724085]
[1758103320899,0.058,4501.4,4500.4,0.23724085]
[1758103320900,0.55966011,4501.0,4500.4,0.23724085]
[1758103321198,0.55966011,4500.9,4500.4,0.23724085]
[1758103321397,0.78366011,4500.8,4500.4,0.23724085]
[1758103321599,0.55966011,4500.7,4500.4,0.23724085]
[1758103326103,0.2116,4500.5,4500.4,0.64434085]
[1758103326305,0.7341,4500.5,4500.4,0.64434085]
[1758103326503,1.29376011,4500.5,4500.4,0.64434085]
[1758103326802,1.29376011,4500.5,4500.4,0.93844085]
[1758103327203,1.39826011,4500.5,4499.5,0.129]
[1758103327394,0.7341,4500.2,4500.1,0.23724085]
[1758103327702,0.7341,4499.7,4499.6,0.4936]
[1758103327907,1.29376011,4499.7,4499.6,0.4936]
[1758103328203,1.29376011,4499.7,4499.6,0.73084085]
[1758103328500,1.29376011,4499.7,4499.6,0.53134085]
[1758103329100,1.29376011,4499.7,4499.6,0.23724085]
[1758103330002,1.29376011,4499.7,4499.3,0.2941]
[1758103330203,0.4235,4499.4,4499.3,0.53134085]
[1758103330507,1.29376011,4499.4,4498.6,0.2941]
[1758103330704,0.55966011,4499.3,4499.0,0.53134085]
[1758103330909,0.7341,4498.7,4498.6,0.4936]
[1758103331205,1.29376011,4498.7,4498.6,0.4936]
[1758103331807,1.29376011,4498.7,4498.6,0.73084085]
[1758103332002,1.29376011,4498.7,4498.6,0.53134085]
[1758103332808,1.29376011,4498.7,4498.1,0.2941]
[1758103333014,0.4235,4498.2,4498.1,0.73084085]
[1758103333309,0.7341,4498.2,4498.1,0.73084085]
[1758103333613,1.29376011,4498.2,4498.1,0.73084085]
[1758103333810,1.29376011,4498.2,4498.1,0.93844085]
[1758103334108,0.55966011,4498.2,4498.1,0.93844085]
[1758103334412,40.9045,4499.0,4498.6,0.2076]
[1758103334413,0.4356,4498.7,4498.6,0.2076]
[1758103334715,1.20406729,4498.7,4498.6,0.7012]
[1758103334915,1.51466729,4498.7,4498.6,0.93844085]
[1758103336316,1.51466729,4498.7,4498.6,0.73084085]
[1758103337215,1.51466729,4498.7,4497.1,1.481]
[1758103337413,0.9581,4498.7,4498.4,0.53134085]
[1758103337612,0.7341,4498.5,4498.4,0.53134085]
[1758103337912,0.7341,4498.5,4498.4,0.73084085]
[1758103338114,0.224,4498.7,4498.6,0.4071]
[1758103338315,0.224,4498.7,4498.6,0.7012]
[1758103338619,0.4356,4498.7,4498.6,0.7012]
[1758103338814,1.20356483,4498.7,4498.6,0.7012]
[1758103339115,1.51416483,4498.7,4498.6,0.7012]
[1758103342120,1.29016483,4498.7,4498.6,0.7012]
[1758103342423,1.51416483,4498.7,4498.6,0.7012]
[1758103343315,1.50256483,4498.7,4498.6,0.7012]
[1758103343512,1.27856483,4498.7,4498.6,0.4936]
[1758103343711,1.50256483,4498.7,4498.6,0.4936]
[1758103344212,1.50256483,4498.7,4498.6,0.7054]
[1758103344920,1.27856483,4498.7,4498.6,0.7054]
[1758103345119,1.50256483,4498.7,4498.6,0.7054]
[1758103347428,1.50256483,4498.7,4498.6,0.4936]
[1758103348524,1.50256483,4498.7,4498.6,0.2941]
[1758103348727,1.50256483,4498.7,4498.6,0.5]
[1758103350523,1.50256483,4498.7,4498.6,0.7118]
[1758103351230,1.20356483,4498.7,4498.6,0.7118]
[1758103352129,1.50256483,4498.7,4498.6,0.7118]
[1758103352627,1.27856483,4498.7,4498.6,0.7118]
[1758103352821,1.50256483,4498.7,4498.6,0.7118]
[1758103355131,1.50256483,4498.7,4498.6,0.5]
[1758103355328,1.50256483,4498.7,4498.1,0.301]
[1758103355522,1.25046483,4498.6,4498.5,0.23724085]
[1758103356026,1.25046483,4498.6,4497.4,1.481]
[1758103356027,0.1045,4498.5,4497.4,1.481]
[1758103356331,0.85506483,4498.4,4498.2,0.23724085]
[1758103356530,0.75236483,4498.3,4498.2,0.65494085]
[1758103356732,0.75236483,4498.3,4498.2,0.95594085]
[1758103357033,0.55606483,4498.3,4498.2,0.95594085]
[1758103357732,0.75236483,4498.3,4498.2,0.95594085]
[1758103357933,1.25046483,4498.3,4498.2,0.95594085]
[1758103358924,1.25046483,4498.3,4498.2,0.5069]
[1758103359234,1.25046483,4498.3,4497.6,0.301]
[1758103359431,1.25046483,4498.2,4497.4,1.481]
[1758103359635,0.1963,4497.7,4497.6,0.7187]
[1758103359931,0.55606483,4497.7,4497.6,0.4177]
[1758103360134,1.25789638,4498.3,4498.2,0.5069]
[1758103362733,1.25789638,4498.3,4498.2,0.7187]
[1758103363038,0.75979638,4498.3,4498.2,0.95594085]
[1758103363233,0.56349638,4498.3,4498.2,0.95594085]
[1758103368734,0.75979638,4498.3,4498.2,0.95594085]
[1758103368936,1.25749638,4498.3,4498.2,0.95594085]
[1758103369940,1.25749638,4498.3,4498.2,0.301]
[1758103370235,1.25749638,4498.3,4497.6,0.2921]
[1758103370439,0.7118,4498.1,4498.0,0.2096]
[1758103370641,1.27529638,4498.1,4498.0,0.2096]
[1758103370839,0.97729638,4498.1,4498.0,0.2921]
[1758103371145,1.27529638,4498.1,4498.0,0.2921]
[1758103371440,1.27529638,4498.1,4498.0,0.5017]
[1758103372343,1.27529638,4498.1,4498.0,0.8259]
[1758103372539,1.27529638,4498.1,4498.0,0.6971]
[1758103372843,1.27529638,4498.1,4498.0,0.5017]
[1758103373640,1.27529638,4498.1,4498.0,0.2921]
[1758103373836,1.27529638,4498.1,4497.0,0.129]
[1758103374036,0.7185,4497.7,4497.6,0.74894085]
[1758103374238,0.7185,4497.7,4497.6,0.5117]
[1758103374239,1.28199638,4497.7,4497.6,0.5117]
[1758103375141,1.28199638,4497.7,4497.6,0.7127]
[1758103375847,0.56349638,4497.7,4497.6,0.94994085]
[1758103376646,1.28199638,4497.7,4497.6,0.94994085]
[1758103377042,0.97019638,4497.7,4497.6,0.94994085]
[1758103380038,1.28199638,4497.7,4497.6,0.94994085]
[1758103380541,0.97019638,4497.7,4497.6,0.94994085]
[1758103383644,1.28199638,4497.7,4497.6,0.94994085]
[1758103385049,0.97019638,4497.7,4497.6,0.94994085]
[1758103387349,1.28199638,4497.7,4497.6,0.94994085]
[1758103388343,0.97019638,4497.7,4497.6,0.94994085]
[1758103389342,0.56349638,4497.7,4497.6,0.94994085]
[1758103393349,0.77479638,4497.7,4497.6,0.94994085]
[1758103393544,1.28199638,4497.7,4497.6,0.94994085]
[1758103395152,1.28199638,4497.7,4497.0,0.129]
[1758103395356,0.7185,4497.5,4497.4,0.55234085]
[1758103395651,1.28199638,4497.5,4497.4,0.3151]
[1758103397753,1.38649638,4497.5,4497.1,0.3151]
[1758103397950,0.7185,4497.3,4497.2,0.55234085]
[1758103398158,0.7185,4496.8,4496.7,0.5117]
[1758103398345,0.7185,4496.8,4496.7,0.94994085]
[1758103400849,0.4067,4496.8,4496.7,0.94994085]
[1758103401253,0.7185,4496.8,4496.7,0.94994085]
[1758103402756,0.7185,4496.8,4496.7,0.95924085]
[1758103403455,0.4067,4496.8,4496.7,0.95924085]
[1758103403653,0.2113,4496.8,4496.7,0.95924085]
[1758103406558,0.293,4497.1,4496.7,0.95924085]
[1758103406863,0.4998,4497.1,4497.0,0.8322]
[1758103407064,1.06278727,4497.1,4497.0,0.8322]
[1758103407358,1.26788727,4497.1,4497.0,0.8322]
[1758103408266,1.19888727,4497.1,4497.0,0.8322]
[1758103408658,1.19436327,4497.1,4497.0,0.8322]
[1758103409764,32.028,4497.9,4497.8,0.4106]
[1758103409963,33.01729068,4497.9,4497.8,0.7144]
[1758103410557,0.55849068,4497.9,4497.8,0.95164085]
[1758103410764,0.4998,4498.9,4498.8,0.5041]
[1758103411067,1.48747625,4498.9,4498.8,0.7144]
[1758103411263,1.48747625,4498.9,4498.8,0.5041]
[1758103411758,0.55857625,4498.9,4498.8,0.95164085]
[1758103411954,0.2068,4499.6,4499.5,0.8322]
[1758103412158,1.26340744,4499.6,4499.5,0.8322]
[1758103413855,1.26340744,4499.6,4499.1,0.3038]
[1758103414059,32.252,4499.7,4499.3,0.23724085]
[1758103414060,0.7049,4499.4,4499.3,0.23724085]
[1758103414767,0.7049,4499.4,4498.0,0.1178]
[1758103414768,5.26226469,4499.4,4498.1,0.3038]
[1758103414958,0.7049,4498.7,4498.6,0.54104085]
[1758103415158,0.9299,4498.7,4498.6,0.54104085]
[1758103415358,0.9299,4498.7,4498.1,0.3038]
[1758103415660,0.9299,4498.7,4498.3,0.23724085]
[1758103415869,0.9299,4498.7,4498.4,0.3038]
[1758103416065,0.4119,4498.5,4498.4,0.5041]
[1758103416260,0.7049,4498.5,4498.4,0.5041]
[1758103418161,0.7049,4498.5,4498.4,0.7144]
[1758103421568,0.4998,4499.1,4499.0,0.2003]
[1758103421866,0.7049,4499.1,4499.0,1.06944085]
[1758103423471,0.4119,4499.1,4499.0,1.06944085]
[1758103426270,0.7049,4499.1,4499.0,1.06944085]
[1758103427370,0.4119,4499.1,4499.0,1.06944085]
[1758103427872,0.2068,4499.1,4499.0,1.06944085]
[1758103428368,0.4308,4499.1,4499.0,1.06944085]
[1758103430367,0.3132,4500.4,4499.7,0.3095]
[1758103430572,32.02,4501.2,4500.2,0.704]
[1758103430573,1.49813284,4500.3,4500.2,0.704]
[1758103430969,1.49813284,4500.3,4500.2,0.94124085]
[1758103431169,0.9412,4500.3,4500.2,0.94124085]
[1758103434674,1.49802188,4500.3,4500.2,0.94124085]
[1758103435672,1.49802188,4500.3,4500.2,0.54674085]
[1758103435971,1.49802188,4500.3,4499.6,0.3156]
[1758103436176,0.8309,4500.0,4499.9,0.23724085]
[1758103436377,1.38772188,4500.0,4499.9,0.23724085]
[1758103436776,1.28322188,4500.0,4499.9,0.76724085]
[1758103436977,1.28322188,4500.0,4499.9,0.98044085]
[1758103437573,0.97432188,4500.0,4499.9,0.98044085]
[1758103437976,0.76262188,4500.0,4499.9,0.98044085]
[1758103438368,0.55682188,4500.0,4499.9,0.98044085]
[1758103442173,1.28322188,4500.0,4499.9,0.98044085]
[1758103442777,0.97432188,4500.0,4499.9,0.98044085]
[1758103442978,0.76262188,4500.0,4499.9,0.98044085]
[1758103444783,0.2058,4500.0,4499.9,0.98044085]
[1758103447386,0.76369124,4500.0,4499.9,0.98044085]
[1758103449791,1.28429124,4500.0,4499.9,0.98044085]
[1758103449993,1.28429124,4500.0,4499.9,0.7432]
[1758103453692,1.28429124,4500.0,4499.5,0.1233]
[1758103453898,0.2058,4499.2,4499.1,0.7432]
[1758103454392,0.2058,4499.2,4499.1,0.98044085]
[1758103454696,0.5147,4499.5,4499.4,0.4276]
[1758103454898,0.5147,4499.5,4499.4,0.7432]
[1758103455098,1.28505382,4499.5,4499.4,0.76724085]
[1758103455298,1.28505382,4499.5,4499.4,0.55284085]
[1758103455894,1.28505382,4499.5,4499.4,0.76724085]
[1758103457000,1.28505382,4499.5,4499.4,0.53]
[1758103460510,0.97615382,4499.5,4499.4,0.7432]
[1758103461003,1.28505382,4499.5,4499.4,0.7432]
[1758103461504,0.97615382,4499.5,4499.4,0.7432]
[1758103464710,1.29595382,4499.5,4499.4,0.7432]
[1758103466322,1.29620702,4499.5,4499.4,0.7432]
[1758103475415,1.29620702,4499.5,4499.1,0.3015]
[1758103475416,1.40070702,4499.5,4499.1,0.3015]
[1758103475622,0.8418,4499.5,4499.4,0.23724085]
[1758103475819,1.40070951,4499.5,4499.4,0.23724085]
[1758103476621,1.40070951,4499.5,4499.4,0.53874085]
[1758103479425,1.40070951,4499.5,4499.4,0.3015]
[1758103480123,1.29620951,4499.5,4499.4,0.5127]
[1758103481824,1.29620951,4499.5,4499.4,0.711]
[1758103485235,0.55890951,4499.5,4499.4,0.711]
[1758103486236,0.55890951,4499.5,4499.4,0.94824085]
[1758103493133,0.76140951,4499.5,4499.4,0.94824085]
[1758103494437,0.55890951,4499.5,4499.4,0.94824085]
[1758103494639,0.7048,4500.4,4500.3,0.7176]
[1758103494833,1.26376918,4500.4,4500.3,0.7176]
[1758103497145,0.55896918,4500.4,4500.3,0.95484085]
[1758103498640,0.76146918,4500.4,4500.3,0.95484085]
[1758103499241,0.55896918,4500.4,4500.3,0.95484085]
[1758103500038,0.76146918,4500.4,4500.3,0.95484085]
[1758103500242,1.26376918,4500.4,4500.3,0.95484085]
[1758103500638,0.76146918,4500.4,4500.3,0.95484085]
[1758103500839,1.06276918,4500.4,4500.3,0.95484085]
[1758103501445,1.26376918,4500.4,4500.3,0.95484085]
[1758103501838,0.96246918,4500.4,4500.3,0.95484085]
[1758103502038,1.26376918,4500.4,4500.3,0.95484085]
[1758103502239,0.7048,4500.4,4500.3,0.95484085]
[1758103502641,0.2025,4500.4,4500.3,0.95484085]
[1758103504142,0.7048,4500.4,4500.3,0.95484085]
[1758103504848,1.26333868,4500.4,4500.3,0.95484085]
[1758103507449,0.96203868,4500.4,4500.3,0.95484085]
[1758103508648,1.26333868,4500.4,4500.3,0.95484085]
[1758103513447,1.26333868,4500.4,4499.6,0.3144]
[1758103513754,0.7048,4499.7,4499.6,0.5208]
[1758103513948,1.26375557,4499.7,4499.6,0.75804085]
[1758103516350,0.76145557,4499.7,4499.6,0.95484085]
[1758103517355,0.55895557,4499.7,4499.6,0.95484085]
[1758103517652,0.3725,4500.5,4500.4,0.4032]
[1758103517854,1.43397218,4500.5,4500.4,0.7176]
[1758103519950,1.13267218,4500.5,4500.4,0.7176]
[1758103520654,1.43397218,4500.5,4500.4,0.7176]
[1758103526861,0.72917218,4500.5,4500.4,0.95484085]
[1758103527161,0.55917218,4500.5,4500.4,0.95484085]
[1758103528155,0.55917218,4500.5,4500.4,4.95484085]
[1758103528354,0.2982,4501.6,4501.5,0.8499]
[1758103528355,0.698,4501.6,4501.5,0.8499]
[1758103528553,0.922,4501.6,4501.5,0.8499]
[1758103529259,0.922,4501.6,4501.0,0.1247]
[1758103529461,0.3998,4501.3,4501.2,0.54094085]
[1758103529658,0.698,4501.3,4501.2,0.74834085]
[1758103532260,0.698,4501.3,4501.2,0.23724085]
[1758103533260,0.698,4501.3,4501.2,0.54094085]
[1758103533460,0.698,4501.3,4501.2,0.74834085]
[1758103534555,0.698,4501.3,4501.2,0.96244085]
[1758103535965,0.3998,4501.3,4501.2,0.96244085]
[1758103539372,0.3998,4501.3,4501.2,0.7252]
[1758103540272,0.698,4501.3,4501.2,0.7252]
[1758103540474,1.25379674,4501.3,4500.6,0.3037]
[1758103540673,0.698,4500.9,4500.3,0.3037]
[1758103540874,0.3998,4500.4,4500.3,0.2074]
[1758103541171,0.698,4500.4,4500.3,0.5111]
[1758103541368,0.698,4500.4,4500.3,0.74834085]
[1758103542569,1.25371884,4500.4,4500.3,0.74834085]
[1758103544878,1.25371884,4500.4,4500.3,0.96244085]
[1758103546077,0.3998,4500.4,4500.3,0.96244085]
[1758103546874,0.698,4500.4,4500.3,0.96244085]
[1758103547069,1.25404778,4500.4,4500.3,0.96244085]
[1758103549575,0.95584778,4500.4,4500.3,0.96244085]
[1758103550672,1.25404778,4500.4,4500.3,0.96244085]
[1758103553777,0.95584778,4500.4,4500.3,0.96244085]
[1758103560180,1.26114778,4500.4,4500.3,0.96244085]
[1758103563591,0.224,4501.0,4500.3,0.96244085]
[1758103563796,1.4810488,4500.9,4500.8,0.2012]
[1758103563999,1.4810488,4500.9,4500.8,0.5005]
[1758103564684,1.25885879,4500.9,4500.8,0.5005]
[1758103564885,1.25885879,4500.9,4500.8,0.2993]
[1758103565291,1.25885879,4500.9,4500.8,0.5005]
[1758103566589,1.48285879,4500.9,4500.6,0.2993]
[1758103566795,0.7032,4500.7,4500.6,0.2993]
[1758103567093,1.25885879,4500.7,4500.6,0.2993]
[1758103567898,1.25885879,4500.7,4500.6,0.5005]
[1758103569699,1.25885879,4500.7,4500.1,0.2993]
[1758103569899,0.7032,4500.5,4500.4,0.53654085]
[1758103570096,1.25885879,4500.5,4500.4,0.53654085]
[1758103570587,0.75265879,4500.5,4500.4,0.93474085]
[1758103570793,0.55565879,4500.5,4500.4,0.93474085]
[1758103570994,0.55565879,4500.7,4500.4,0.93474085]
[1758103571295,0.7032,4500.6,4500.5,0.23724085]
[1758103571496,1.25885879,4500.6,4500.5,0.23724085]
[1758103571690,1.25885879,4500.6,4500.1,0.2993]
[1758103571898,0.224,4500.8,4500.3,0.2993]
[1758103571899,0.7032,4500.4,4500.3,0.2993]
[1758103572098,1.25885879,4500.4,4500.3,0.2993]
[1758103572802,1.25885879,4500.4,4500.3,0.5005]
[1758103579709,1.25885879,4500.4,4500.3,0.6975]
[1758103590407,0.95355879,4500.4,4500.3,0.6975]
[1758103590813,1.24655879,4500.4,4500.3,0.6975]
[1758103592811,1.24655879,4500.4,4500.3,0.5005]
[1758103593312,1.24655879,4500.4,4499.0,0.1247]
[1758103593313,1.24655879,4500.4,4499.9,0.3072]
[1758103593518,0.421,4499.7,4499.6,0.5108]
[1758103593814,0.714,4499.7,4499.6,0.5108]
[1758103594010,1.26965879,4499.7,4499.6,0.74804085]
[1758103598119,1.26965879,4499.7,4499.6,0.23724085]
[1758103598618,1.26965879,4499.7,4499.6,0.54444085]